bitfinex-derivatives/quotes_BTCF0:USTF0_20260107
["timestamp","ask_amount","ask_price","bid_price","bid_amount"]
[1767796569099,0.09264,91909.0,91891.0,0.01089]
[1767796569493,0.09264,91909.0,91890.0,0.010891]
[1767796570002,0.18292069,91909.0,91873.0,0.09326712]
[1767796570194,0.09028069,91908.0,91875.0,0.09326712]
[1767796570395,0.09264,91909.0,91868.0,0.07664065]
[1767796570396,0.18292069,91909.0,91879.0,0.010892]
[1767796570595,0.18292069,91909.0,91865.0,0.24]
[1767796570596,0.08380609,91891.0,91869.0,0.09264]
[1767796570802,0.08380609,91891.0,91854.0,0.09326712]
[1767796570803,0.09028069,91888.0,91874.0,0.010892]
[1767796571011,0.09469609,91898.0,91862.0,0.09326712]
[1767796571194,0.08380609,91894.0,91865.0,0.010894]
[1767796571505,0.08380609,91894.0,91847.0,0.09326712]
[1767796571506,0.010892,91882.0,91849.0,0.010895]
[1767796571706,0.08380609,91877.0,91833.0,0.09326712]
[1767796571917,0.09264,91876.0,91854.0,0.010895]
[1767796572095,0.09264,91876.0,91857.0,0.010894]
[1767796572415,0.08380609,91891.0,91866.0,0.010893]
[1767796572595,0.09264,91888.0,91866.0,0.010893]
[1767796572797,0.09264,91888.0,91853.0,0.09326712]
[1767796573007,0.10117269,91878.0,91854.0,0.09264]
[1767796573303,0.010893,91873.0,91850.0,0.09264]
[1767796573507,0.10117369,91873.0,91850.0,0.09264]
[1767796573812,0.09028069,91873.0,91850.0,0.09264]
[1767796574306,0.08380609,91876.0,91854.0,0.010895]
[1767796574603,0.09028069,91872.0,91828.0,0.09326712]
[1767796574805,0.010893,91869.0,91842.0,0.010896]
[1767796575308,0.010893,91866.0,91841.0,0.09264]
[1767796575501,0.010893,91870.0,91842.0,0.010896]
[1767796575702,0.010893,91870.0,91840.0,0.00012149]
[1767796575909,0.09264,91877.0,91856.0,0.010895]
[1767796576614,0.09264,91877.0,91840.0,0.00012149]
[1767796576615,0.01089,91893.0,91855.0,0.09326712]
[1767796576904,0.01089,91893.0,91854.0,0.09264]
[1767796576905,0.09264,91892.0,91867.0,0.09326712]
[1767796577111,0.15564,91916.0,91856.0,0.09264]
[1767796577112,0.010888,91913.0,91882.0,0.09326712]
[1767796577404,0.010888,91913.0,91870.0,0.08638348]
[1767796577405,0.010888,91911.0,91884.0,0.010891]
[1767796577609,0.09264,91912.0,91883.0,0.09326712]
[1767796577793,0.09028069,91909.0,91872.0,0.09326712]
[1767796577995,0.08778069,91909.0,91886.0,0.010891]
[1767796578301,0.09264,91912.0,91889.0,0.010891]
[1767796578610,0.010889,91907.0,91885.0,0.103531]
[1767796578901,0.01089,91896.0,91878.0,0.09264]
[1767796579102,0.01089,91896.0,91858.0,0.010894]
[1767796579103,0.010891,91885.0,91858.0,0.010894]
[1767796579309,0.08380609,91895.0,91858.0,0.010894]
[1767796579503,0.08380609,91895.0,91847.0,0.09326712]
[1767796579504,0.010892,91877.0,91847.0,0.09326712]
[1767796579710,0.08380609,91883.0,91866.0,0.010893]
[1767796579906,0.09264,91894.0,91864.0,0.09264]
[1767796580204,0.010887,91920.0,91864.0,0.09264]
[1767796580205,0.09264,91906.0,91874.0,0.09326712]
[1767796580410,0.09264,91911.0,91896.0,0.01089]
[1767796580601,0.09264,91911.0,91865.0,0.09264]
[1767796580602,0.09264,91911.0,91887.0,0.19679812]
[1767796580801,0.09028069,91908.0,91879.0,0.010892]
[1767796581104,0.09028069,91902.0,91865.0,0.09326712]
[1767796581406,0.08380609,91898.0,91865.0,0.010893]
[1767796581604,0.09028069,91893.0,91866.0,0.09264]
[1767796581815,0.09028069,91893.0,91873.0,0.010893]
[1767796582110,0.10353,91897.0,91876.0,0.010892]
[1767796582609,0.10353,91897.0,91871.0,0.0926]
[1767796582610,0.09264,91897.0,91871.0,0.0926]
[1767796582911,0.09264,91897.0,91873.0,0.09326712]
[1767796583204,0.09028069,91918.0,91879.0,0.09326712]
[1767796583410,0.18288069,91918.0,91896.0,0.01089]
[1767796583600,0.0926,91918.0,91887.0,0.09326712]
[1767796583800,0.010888,91914.0,91892.0,0.01089]
[1767796583995,0.010888,91914.0,91892.0,0.10349]
[1767796584206,0.0926,91918.0,91892.0,0.10349]
[1767796584207,0.0926,91918.0,91892.0,0.0926]
[1767796584408,0.00217584,91919.0,91898.0,0.01089]
[1767796584409,8.4e-07,91919.0,91898.0,0.01089]
[1767796584598,0.09028069,91950.0,91901.0,0.08638348]
[1767796584801,0.0926,91944.0,91933.0,0.010885]
[1767796585003,0.08380609,91954.0,91929.0,0.010886]
[1767796585205,0.09245582,91949.0,91923.0,0.0926]
[1767796585405,0.09028069,91940.0,91922.0,0.0926]
[1767796585612,0.09028069,91939.0,91911.0,0.010888]
[1767796585809,0.010884,91943.0,91912.0,0.0926]
[1767796586008,0.010884,91943.0,91901.0,0.08638348]
[1767796586009,0.09028069,91944.0,91914.0,0.09326712]
[1767796586306,0.010885,91937.0,91914.0,0.09326712]
[1767796586510,0.08380609,91942.0,91908.0,0.010888]
[1767796586818,0.010886,91930.0,91907.0,0.010888]
[1767796587005,0.09028069,91929.0,91906.0,0.0926]
[1767796587318,0.0926,91935.0,91910.0,0.09326712]
[1767796587608,0.0926,91943.0,91915.0,0.09326712]
[1767796587802,0.0926,91943.0,91916.0,0.0926]
[1767796587998,0.0926,91943.0,91917.0,0.09326712]
[1767796588199,0.0926,91943.0,91926.0,0.010886]
[1767796588400,1.3e-07,91949.0,91930.0,0.08638348]
[1767796588697,1.3e-07,91949.0,91927.0,0.0926]
[1767796588698,1.3e-07,91949.0,91943.0,0.010884]
[1767796588909,1.3e-07,91949.0,91937.0,0.09326712]
[1767796589102,1.3e-07,91949.0,91918.0,0.410887]
[1767796589103,1.3e-07,91949.0,91938.0,0.10415212]
[1767796589303,1.3e-07,91949.0,91939.0,0.0926]
[1767796589501,1.3e-07,91949.0,91916.0,0.09326712]
[1767796589709,0.09028069,91948.0,91916.0,0.09326712]
[1767796589909,0.09028069,91948.0,91925.0,0.010886]
[1767796590418,0.08380609,91944.0,91894.0,0.09326712]
[1767796590605,0.08380609,91944.0,91892.0,0.08638348]
[1767796590606,0.09028069,91938.0,91902.0,0.09326712]
[1767796590801,0.09028069,91924.0,91899.0,0.0926]
[1767796591013,0.0926,91923.0,91908.0,0.010888]
[1767796591205,0.4,91947.0,91882.0,0.010891]
[1767796591206,0.09028069,91926.0,91884.0,0.09326712]
[1767796591516,0.0926,91926.0,91903.0,0.010889]
[1767796591711,0.0926,91926.0,91900.0,0.0926]
[1767796591912,0.18925478,91926.0,91900.0,0.0926]
[1767796592113,0.20014078,91926.0,91900.0,0.0926]
[1767796592309,0.18925478,91926.0,91900.0,0.0926]
[1767796592529,0.18925478,91937.0,91901.0,0.09814384]
[1767796592817,0.0884096,91928.0,91902.0,0.0926]
[1767796593003,0.010886,91927.0,91903.0,0.0926]
[1767796593205,0.010886,91925.0,91902.0,0.0926]
[1767796593410,0.0926,91926.0,91914.0,0.010888]
[1767796593608,0.010885,91933.0,91905.0,0.010889]
[1767796593808,0.0926,91934.0,91908.0,0.010888]
[1767796594012,0.0926,91934.0,91903.0,0.09814384]
[1767796594420,0.0926,91934.0,91909.0,0.010888]
[1767796594615,0.0926,91934.0,91913.0,0.00871074]
[1767796594816,0.0926,91934.0,91913.0,0.010888]
[1767796595017,0.0926,91934.0,91913.0,0.103488]
[1767796595211,0.0926,91934.0,91915.0,0.010888]
[1767796595519,0.0926,91941.0,91919.0,0.010887]
[1767796595911,0.0884096,91939.0,91903.0,0.09814384]
[1767796596116,0.10754078,91931.0,91892.0,0.09814384]
[1767796596420,0.010886,91929.0,91902.0,0.010889]
[1767796596608,0.09665478,91931.0,91898.0,0.01089]
[1767796596810,0.010886,91925.0,91899.0,0.010889]
[1767796597024,0.1809696,91930.0,91900.0,0.09256]
[1767796597025,0.010886,91929.0,91900.0,0.09256]
[1767796597211,0.0884096,91930.0,91906.0,0.010889]
[1767796597413,0.055685,98500.0,91942.0,0.010884]
[1767796597414,0.0884096,91958.0,91942.0,0.010884]
[1767796597727,0.09256,91961.0,91942.0,0.010884]
[1767796598016,0.09256,91961.0,91934.0,0.09814384]
[1767796598221,0.09665478,91952.0,91926.0,0.010886]
[1767796598406,0.09665478,91952.0,91911.0,0.2814]
[1767796598407,0.10753878,91947.0,91924.0,0.09256]
[1767796598609,0.09665478,91940.0,91916.0,0.09256]
[1767796598822,0.09665478,91939.0,91916.0,0.09256]
[1767796599322,0.09665478,91933.0,91912.0,0.09256]
[1767796599513,0.09665478,91933.0,91882.0,0.09456431]
[1767796599823,0.09256,91934.0,91884.0,0.010891]
[1767796599824,0.010888,91914.0,91884.0,0.010891]
[1767796600015,0.09665478,91920.0,91885.0,0.09256]
[1767796600214,0.09256,91922.0,91901.0,0.010889]
[1767796600409,0.010886,91930.0,91901.0,0.09256]
[1767796600610,0.01089,91898.0,91870.0,0.010893]
[1767796600815,0.09665478,91905.0,91871.0,0.09256]
[1767796601018,0.01089,91894.0,91871.0,0.09256]
[1767796601221,0.010891,91885.0,91865.0,0.02803369]
[1767796601527,0.010891,91883.0,91866.0,0.09256]
[1767796601718,0.010891,91887.0,91866.0,0.09256]
[1767796602021,0.18921478,91908.0,91876.0,0.09814384]
[1767796602210,0.09665478,91907.0,91877.0,0.09256]
[1767796602410,0.09665478,91907.0,91878.0,0.09256]
[1767796602618,0.01089,91896.0,91878.0,0.09038203]
[1767796602929,0.09665478,91905.0,91878.0,0.09038203]
[1767796603111,0.01089,91897.0,91870.0,0.010893]
[1767796603319,0.010891,91890.0,91871.0,0.09256]
[1767796603518,0.01089,91894.0,91872.0,0.010893]
[1767796603716,0.01089,91898.0,91872.0,0.010893]
[1767796603922,0.09665478,91902.0,91871.0,0.09256]
[1767796604124,0.01089,91896.0,91874.0,0.010892]
[1767796604425,0.09665478,91902.0,91872.0,0.09814384]
[1767796604626,0.010891,91884.0,91871.0,0.0926]
[1767796604925,0.010891,91885.0,91865.0,0.02803369]
[1767796605222,0.010893,91871.0,91850.0,0.09814384]
[1767796605416,0.010893,91871.0,91851.0,0.0926]
[1767796605815,0.0926,91885.0,91871.0,0.010893]
[1767796606019,0.01089,91899.0,91876.0,0.010892]
[1767796606326,0.0926,91900.0,91881.0,0.010892]
[1767796606521,0.010889,91903.0,91878.0,0.0926]
[1767796606722,0.01089,91898.0,91878.0,0.103492]
[1767796607025,0.01089,91892.0,91878.0,0.0926]
[1767796607222,0.010892,91881.0,91848.0,0.09814384]
[1767796607425,0.010892,91882.0,91850.0,0.09814384]
[1767796607620,0.010892,91877.0,91856.0,0.010895]
[1767796607831,0.010892,91877.0,91839.0,0.09456431]
[1767796607832,0.09665478,91877.0,91857.0,0.0926]
[1767796608129,0.09665478,91877.0,91855.0,0.0926]
[1767796608323,0.09665478,91877.0,91839.0,0.19270815]
[1767796608324,0.09665478,91873.0,91839.0,0.09814384]
[1767796608527,0.09665478,91869.0,91846.0,0.010896]
[1767796608714,0.09665478,91881.0,91852.0,0.010895]
[1767796608919,0.010893,91872.0,91845.0,0.010896]
[1767796609121,0.09665478,91876.0,91844.0,0.010896]
[1767796609325,0.09665478,91872.0,91841.0,0.0926]
[1767796609629,0.010893,91867.0,91849.0,0.010895]
[1767796609829,0.010894,91863.0,91842.0,0.09814384]
[1767796610020,0.010894,91863.0,91845.0,0.010896]
[1767796610222,0.010894,91863.0,91842.0,0.09814384]
[1767796610529,0.010894,91863.0,91845.0,0.010896]
[1767796610729,0.010894,91864.0,91845.0,0.010896]
[1767796610933,0.010894,91864.0,91842.0,0.09814384]
[1767796611122,0.0884096,91877.0,91842.0,0.09814384]
[1767796611123,0.010894,91862.0,91843.0,0.010896]
[1767796611434,0.010894,91862.0,91844.0,0.0926]
[1767796611730,0.010894,91865.0,91845.0,0.010896]
[1767796612025,0.010894,91863.0,91842.0,0.10903984]
[1767796612232,0.010894,91863.0,91844.0,0.010896]
[1767796612732,0.010893,91866.0,91844.0,0.010896]
[1767796612921,0.010893,91866.0,91847.0,0.010896]
[1767796613234,0.010893,91871.0,91852.0,0.010895]
[1767796613641,0.09665478,91876.0,91847.0,0.010896]
[1767796613828,0.010892,91875.0,91844.0,0.09814384]
[1767796614130,0.09665478,91876.0,91844.0,0.09814384]
[1767796614131,0.010893,91867.0,91844.0,0.09814384]
[1767796614324,0.010894,91860.0,91843.0,0.0926]
[1767796614632,0.010894,91864.0,91846.0,0.010896]
[1767796614830,0.010894,91864.0,91843.0,0.0926]
[1767796614831,0.010894,91861.0,91843.0,0.103496]
[1767796615042,0.010894,91861.0,91845.0,0.010896]
[1767796615534,0.010894,91864.0,91845.0,0.010896]
[1767796615736,0.010894,91864.0,91847.0,0.010896]
[1767796616227,0.010895,91855.0,91834.0,0.09814384]
[1767796616438,0.09665478,91867.0,91841.0,0.0926]
[1767796616633,0.010894,91860.0,91842.0,0.010896]
[1767796616826,0.09665478,91867.0,91841.0,0.103496]
[1767796617022,0.010895,91851.0,91834.0,0.10904084]
[1767796617337,0.010895,91856.0,91841.0,0.0926]
[1767796617518,0.09665478,91860.0,91841.0,0.0926]
[1767796617720,0.010894,91858.0,91842.0,0.010896]
[1767796618025,0.09665478,91860.0,91841.0,0.0926]
[1767796618229,0.09665478,91879.0,91842.0,0.09814384]
[1767796618426,0.18925478,91878.0,91842.0,0.09814384]
[1767796618621,0.010893,91874.0,91845.0,0.09814384]
[1767796618929,0.103492,91878.0,91862.0,0.010894]
[1767796619126,0.103492,91878.0,91848.0,0.010896]
[1767796619127,0.010891,91884.0,91868.0,0.010893]
[1767796619434,0.0926,91885.0,91853.0,0.09814384]
[1767796619435,0.010892,91878.0,91862.0,0.010894]
[1767796619731,0.0926,91885.0,91858.0,0.0926]
[1767796619732,0.010892,91882.0,91858.0,0.0926]
[1767796620028,0.0926,91885.0,91859.0,0.010894]
[1767796620234,0.0926,91885.0,91858.0,0.0926]
[1767796620235,0.010893,91867.0,91858.0,0.0926]
[1767796620528,0.09287569,91863.0,91843.0,0.0926]
[1767796620926,0.010894,91862.0,91844.0,0.010896]
[1767796621125,0.09287569,91863.0,91840.0,0.00012149]
[1767796621321,0.09287569,91863.0,91801.0,0.01088362]
[1767796621322,0.010897,91834.0,91815.0,0.010899]
[1767796621528,0.010898,91831.0,91816.0,0.0926]
[1767796621720,0.08633364,91833.0,91804.0,0.010901]
[1767796621927,0.09208998,91841.0,91813.0,0.0109]
[1767796622124,0.09208998,91837.0,91799.0,0.09749354]
[1767796622325,0.0926,91840.0,91749.0,0.010907]
[1767796622326,0.08633364,91813.0,91789.0,0.0926]
[1767796622628,0.09208998,91808.0,91786.0,0.0926]
[1767796622828,0.010901,91806.0,91787.0,0.0926]
[1767796623135,0.10299198,91797.0,91766.0,0.010905]
[1767796623339,0.010903,91786.0,91754.0,0.010907]
[1767796623527,9.897e-05,91785.0,91755.0,0.09264]
[1767796623830,0.09264,91790.0,91750.0,8.488e-05]
[1767796623831,0.09208998,91778.0,91750.0,8.488e-05]
[1767796624031,0.09264,91801.0,91769.0,0.09749354]
[1767796624238,0.010901,91803.0,91750.0,0.54580283]
[1767796624239,0.08633364,91797.0,91750.0,8.488e-05]
[1767796624536,0.09208998,91772.0,91750.0,8.488e-05]
[1767796624835,0.09208998,91785.0,91750.0,0.01099188]
[1767796625032,0.09208998,91795.0,91764.0,0.008405]
[1767796625236,0.09208998,91795.0,91750.0,8.488e-05]
[1767796625237,0.09264,91801.0,91766.0,0.09749354]
[1767796625535,0.09208998,91798.0,91767.0,0.09264]
[1767796625831,0.010902,91797.0,91767.0,0.09264]
[1767796626236,0.10299198,91797.0,91767.0,0.09264]
[1767796626621,0.10299198,91792.0,91767.0,0.09264]
[1767796626827,0.09208998,91792.0,91767.0,0.09264]
[1767796627026,0.08633364,91800.0,91767.0,0.09264]
[1767796627027,0.10299298,91788.0,91767.0,0.09264]
[1767796627325,0.10299398,91780.0,91750.0,8.488e-05]
[1767796627528,0.10299398,91780.0,91750.0,0.01099188]
[1767796627529,0.09208998,91780.0,91750.0,0.01099188]
[1767796627735,0.09208998,91791.0,91758.0,0.09749354]
[1767796627939,0.09264,91790.0,91762.0,0.010906]
[1767796628240,0.09208998,91802.0,91773.0,0.010904]
[1767796628426,0.09264,91804.0,91780.0,0.14571795]
[1767796628741,0.09264,91804.0,91763.0,0.08721326]
[1767796628742,0.08633364,91803.0,91764.0,0.09749354]
[1767796628930,0.09208998,91792.0,91765.0,0.09268]
[1767796629237,0.010902,91793.0,91758.0,0.010906]
[1767796629238,0.18476998,91802.0,91768.0,0.010905]
[1767796629436,0.18476998,91802.0,91772.0,0.010904]
[1767796629636,0.18476998,91802.0,91767.0,0.09268]
[1767796629637,0.10298998,91813.0,91783.0,0.010903]
[1767796629939,0.09268,91812.0,91780.0,0.09749354]
[1767796630130,0.010901,91799.0,91769.0,0.09749354]
[1767796630333,0.010901,91799.0,91770.0,0.010905]
[1767796630540,0.10299198,91795.0,91764.0,0.010906]
[1767796630731,0.10299198,91795.0,91765.0,0.09268]
[1767796630732,0.010902,91793.0,91765.0,0.09268]
[1767796630933,0.010903,91788.0,91765.0,0.09268]
[1767796631130,0.09268,91794.0,91770.0,0.010905]
[1767796631337,0.010901,91804.0,91774.0,0.010904]
[1767796631526,0.09208998,91810.0,91770.0,0.24321149]
[1767796631527,0.09268,91803.0,91784.0,0.010903]
[1767796631732,0.010899,91816.0,91784.0,0.010903]
[1767796632040,0.010901,91798.0,91773.0,0.09749354]
[1767796632231,0.09208998,91806.0,91774.0,0.09268]
[1767796632539,0.010901,91800.0,91775.0,0.09268]
[1767796632737,0.09268,91807.0,91785.0,0.010903]
[1767796632926,0.09268,91807.0,91781.0,0.010903]
[1767796633243,0.010901,91805.0,91776.0,0.10839754]
[1767796633542,0.010901,91806.0,91783.0,0.09749354]
[1767796633835,0.14571795,91830.0,91775.0,0.09268]
[1767796633836,0.09268,91817.0,91791.0,0.09749354]
[1767796634038,0.09208998,91804.0,91765.0,0.09749354]
[1767796634240,0.09208998,91804.0,91779.0,0.010904]
[1767796634435,0.010901,91803.0,91780.0,0.09268]
[1767796634637,0.09208998,91803.0,91780.0,0.09268]
[1767796635240,0.09268,91807.0,91781.0,0.010903]
[1767796635435,0.09268,91807.0,91784.0,0.010903]
[1767796635641,0.09268,91808.0,91784.0,0.010903]
[1767796635947,0.09208998,91799.0,91775.0,0.010904]
[1767796636143,0.09208998,91799.0,91776.0,0.09268]
[1767796636441,0.17901364,91808.0,91772.0,0.09268]
[1767796636442,0.08633364,91793.0,91772.0,0.09268]
[1767796636646,0.15661795,91810.0,91750.0,8.488e-05]
[1767796636647,0.09208998,91787.0,91757.0,0.09268]
[1767796636947,0.09268,91795.0,91766.0,0.09749354]
[1767796637243,0.09268,91801.0,91779.0,0.010904]
[1767796637445,0.010902,91796.0,91774.0,0.09268]
[1767796637646,0.010902,91796.0,91750.0,8.488e-05]
[1767796637647,0.09208998,91786.0,91756.0,0.010906]
[1767796637839,0.010904,91780.0,91757.0,0.103586]
[1767796638036,0.09268,91783.0,91757.0,0.09268]
[1767796638235,0.09208998,91773.0,91757.0,0.09268]
[1767796638441,0.010905,91766.0,91750.0,8.488e-05]
[1767796638740,0.09268,91769.0,91750.0,8.488e-05]
[1767796638935,0.09208998,91768.0,91750.0,8.488e-05]
[1767796639142,0.010907,91755.0,91742.0,0.09268]
[1767796639336,0.09208998,91759.0,91733.0,0.09268]
[1767796639547,0.09268,91769.0,91739.0,0.09967365]
[1767796639745,0.010905,91765.0,91739.0,0.09967365]
[1767796639943,0.09208998,91765.0,91739.0,0.00218011]
[1767796640142,8.488e-05,91764.0,91743.0,0.010908]
[1767796640348,8.488e-05,91764.0,91753.0,0.010907]
[1767796640947,0.010907,91756.0,91739.0,0.00218011]
[1767796641157,8.488e-05,91755.0,91739.0,0.00218011]
[1767796641552,0.010905,91765.0,91743.0,0.010908]
[1767796641852,0.09268,91772.0,91743.0,0.010908]
[1767796642048,0.010905,91767.0,91739.0,0.00218011]
[1767796642242,0.09208998,91771.0,91739.0,0.01308811]
[1767796642442,0.010906,91759.0,91739.0,0.01308811]
[1767796642647,0.010906,91759.0,91739.0,0.00218011]
[1767796642850,0.09208998,91760.0,91739.0,0.00218011]
[1767796643152,0.09208998,91760.0,91719.0,0.09272]
[1767796643153,0.010908,91740.0,91719.0,0.09272]
[1767796643451,0.08633364,91749.0,91719.0,0.103631]
[1767796643452,0.010908,91741.0,91719.0,0.103631]
[1767796643651,0.10299798,91745.0,91724.0,0.01091]
[1767796643843,0.08633364,91744.0,91719.0,0.09272]
[1767796644044,0.09208998,91736.0,91719.0,0.09272]
[1767796644245,0.010909,91737.0,91719.0,0.09272]
[1767796644754,0.18480998,91746.0,91721.0,0.010911]
[1767796644755,0.010908,91743.0,91721.0,0.010911]
[1767796644955,0.010908,91743.0,91719.0,0.09272]
[1767796644956,0.010908,91742.0,91720.0,0.010911]
[1767796645150,0.010907,91749.0,91720.0,0.09749354]
[1767796645454,0.010908,91747.0,91726.0,0.01091]
[1767796645945,0.010908,91745.0,91723.0,0.01091]
[1767796646145,0.09272,91750.0,91733.0,0.010909]
[1767796646347,0.010908,91746.0,91725.0,0.01091]
[1767796646556,0.010908,91741.0,91721.0,0.010911]
[1767796646747,0.010908,91747.0,91719.0,0.09272]
[1767796646952,0.010908,91747.0,91726.0,0.01091]
[1767796647245,0.010908,91745.0,91726.0,0.01091]
[1767796647449,0.18480998,91750.0,91711.0,0.09749354]
[1767796647754,0.010909,91739.0,91718.0,0.010911]
[1767796647946,0.09272,91750.0,91714.0,0.09749354]
[1767796648149,0.010908,91741.0,91714.0,0.09749354]
[1767796648451,0.09272,91745.0,91726.0,0.01091]
[1767796648648,0.09208998,91737.0,91720.0,0.010911]
[1767796648954,0.09208998,91737.0,91709.0,0.00218082]
[1767796648955,0.010909,91734.0,91715.0,0.09272]
[1767796649141,0.010908,91740.0,91719.0,0.010911]
[1767796649346,0.09208998,91746.0,91715.0,0.09272]
[1767796649554,0.010909,91735.0,91715.0,0.09272]
[1767796649754,0.09208998,91746.0,91715.0,0.09272]
[1767796649954,0.010908,91743.0,91715.0,0.09272]
[1767796650155,0.09208998,91746.0,91715.0,0.09272]
[1767796650156,0.010908,91741.0,91720.0,0.010911]
[1767796650353,0.09208998,91746.0,91715.0,0.09272]
[1767796650554,0.09208998,91744.0,91715.0,0.09272]
[1767796650752,0.09208998,91744.0,91709.0,0.00218082]
[1767796650957,0.09208998,91734.0,91710.0,0.103632]
[1767796651158,0.010908,91742.0,91709.0,0.00218082]
[1767796651159,0.09208998,91728.0,91711.0,0.09272]
[1767796651348,0.01091,91723.0,91709.0,0.00218082]
[1767796651651,0.01091,91723.0,91698.0,0.09272]
[1767796651652,0.10299998,91723.0,91698.0,0.09272]
[1767796651856,0.09513528,91716.0,91698.0,0.09272]
[1767796652058,0.010911,91715.0,91698.0,0.09272]
[1767796652256,0.09513528,91716.0,91698.0,0.09272]
[1767796652452,0.09272,91724.0,91700.0,0.010913]
[1767796652646,0.10363,91724.0,91699.0,0.010913]
[1767796652841,0.09272,91724.0,91694.0,0.09753256]
[1767796653256,0.09272,91724.0,91697.0,0.09753256]
[1767796653753,0.09276,91731.0,91715.0,0.010911]
[1767796653946,0.09276,91733.0,91707.0,0.09276]
[1767796654144,0.09276,91733.0,91712.0,0.010912]
[1767796654341,0.09276,91733.0,91708.0,0.010912]
[1767796654553,0.05989956,91759.0,91713.0,0.17947074]
[1767796654754,0.07724355,91766.0,91707.0,0.09276]
[1767796654755,0.010907,91753.0,91721.0,0.09753256]
[1767796654949,0.09276,91752.0,91722.0,0.09276]
[1767796655251,0.09276,91752.0,91730.0,0.14571795]
[1767796655457,0.229824,91774.0,91730.0,0.14571795]
[1767796655458,0.09276,91759.0,91735.0,0.09753256]
[1767796655657,0.09276,91762.0,91736.0,0.010909]
[1767796655957,0.09513528,91757.0,91735.0,0.09276]
[1767796656155,0.09513528,91776.0,91742.0,0.09753256]
[1767796656354,0.09513528,91776.0,91744.0,0.010908]
[1767796656546,0.09276,91789.0,91768.0,0.010905]
[1767796656850,0.08776,91791.0,91770.0,0.15662295]
[1767796657047,0.08776,91791.0,91765.0,0.09753256]
[1767796657457,0.08776,91791.0,91742.0,0.010908]
[1767796657458,0.09513528,91784.0,91761.0,0.010906]
[1767796657853,0.09513528,91784.0,91756.0,0.09276]
[1767796657854,0.010904,91778.0,91756.0,0.09276]
[1767796658150,0.09276,91777.0,91756.0,0.09276]
[1767796658353,0.09276,91776.0,91758.0,0.010906]
[1767796658657,0.09276,91776.0,91757.0,0.09753256]
[1767796658846,0.09276,91776.0,91757.0,0.10843856]
[1767796660152,0.09276,91776.0,91757.0,0.09753256]
[1767796660458,0.103664,91776.0,91756.0,0.09276]
[1767796660653,0.09276,91776.0,91756.0,0.09276]
[1767796660854,0.09276,91776.0,91740.0,0.22765613]
[1767796660855,0.010905,91772.0,91747.0,0.010907]
[1767796661055,0.010905,91772.0,91745.0,0.09272]
[1767796661255,0.10604028,91770.0,91743.0,0.103628]
[1767796661562,0.09513528,91765.0,91736.0,0.09753256]
[1767796661855,0.09513528,91752.0,91716.0,0.09753256]
[1767796662044,0.09272,91751.0,91717.0,0.19025256]
[1767796662250,0.010908,91746.0,91717.0,0.19025256]
[1767796662455,0.09513528,91746.0,91725.0,0.01091]
[1767796662659,0.010907,91750.0,91725.0,0.01091]
[1767796662957,0.010907,91750.0,91717.0,0.19025256]
[1767796662958,0.103627,91751.0,91724.0,0.01091]
[1767796663158,0.09272,91751.0,91718.0,0.09753256]
[1767796663354,0.09272,91750.0,91729.0,0.09753256]
[1767796663560,0.09272,91749.0,91729.0,0.09753256]
[1767796664058,0.09513528,91748.0,91717.0,0.09753256]
[1767796664250,0.09513528,91748.0,91705.0,0.08193818]
[1767796664251,0.09513528,91740.0,91713.0,0.09272]
[1767796664452,0.09513528,91732.0,91698.0,0.09272]
[1767796664752,0.09513528,91725.0,91698.0,0.09272]
[1767796664952,0.09272,91724.0,91698.0,0.09272]
[1767796665152,0.09513528,91719.0,91691.0,0.00011654]
[1767796665350,0.010912,91710.0,91691.0,0.00011654]
[1767796665857,0.09276,91711.0,91691.0,0.00011654]
[1767796666251,0.09276,91711.0,91692.0,0.010914]
[1767796666456,0.010911,91718.0,91692.0,0.010914]
[1767796666651,0.10604628,91719.0,91691.0,0.01103054]
[1767796666857,0.09276,91718.0,91691.0,0.01103054]
[1767796667057,0.010912,91713.0,91691.0,0.00011654]
[1767796667548,0.09513528,91717.0,91691.0,0.00011654]
[1767796667748,0.09513528,91717.0,91679.0,0.010916]
[1767796667749,0.10604828,91702.0,91675.0,0.09276]
[1767796667962,0.09513528,91696.0,91668.0,0.010917]
[1767796668153,0.09513528,91694.0,91663.0,0.09276]
[1767796668358,0.10604928,91690.0,91663.0,0.010917]
[1767796668560,0.10604928,91690.0,91659.0,0.010918]
[1767796668561,0.010915,91688.0,91659.0,0.010918]
[1767796668757,0.09276,91689.0,91663.0,0.010917]
[1767796668963,0.00011654,91687.0,91659.0,0.010918]
[1767796669259,0.00011654,91687.0,91662.0,0.010918]
[1767796669560,0.00011654,91687.0,91656.0,0.09276]
[1767796669561,0.09276,91686.0,91660.0,0.09753256]
[1767796669753,0.09276,91686.0,91661.0,0.010918]
[1767796670950,0.00011654,91687.0,91654.0,0.09753256]
[1767796671165,0.00011654,91687.0,91644.0,0.01092]
[1767796671166,0.00011654,91687.0,91660.0,0.09753256]
[1767796671355,0.00011654,91687.0,91663.0,0.010917]
[1767796671555,0.010915,91686.0,91660.0,0.19029256]
[1767796671868,0.010915,91682.0,91656.0,0.010918]
[1767796672055,8.573e-05,91681.0,91655.0,0.09276]
[1767796672249,0.09276,91680.0,91656.0,0.09753256]
[1767796672861,8.573e-05,91681.0,91666.0,0.010917]
[1767796674158,0.07724355,91699.0,91666.0,0.010917]
[1767796674159,0.010913,91698.0,91667.0,0.4]
[1767796674365,0.09513528,91705.0,91671.0,0.09753256]
[1767796674558,0.010913,91704.0,91680.0,0.10844756]
[1767796674768,0.010913,91702.0,91680.0,0.09753256]
[1767796675069,0.010913,91700.0,91680.0,0.09753256]
[1767796675272,0.103673,91701.0,91680.0,0.09753256]
[1767796675566,0.103673,91701.0,91675.0,0.010916]
[1767796675863,0.103673,91701.0,91678.0,0.010916]
[1767796676664,0.010913,91699.0,91677.0,0.010916]
[1767796676865,0.010913,91698.0,91673.0,0.010916]
[1767796677064,0.010913,91698.0,91675.0,0.010916]
[1767796677265,0.10604828,91700.0,91667.0,0.09276]
[1767796677564,0.09513528,91699.0,91661.0,0.09753256]
[1767796677758,0.0928,91700.0,91673.0,0.09753256]